Cogmind - Beta 15 @@@ ROGUE MODE // 2025.07.31 @ 20:40:08 Player: SpaceExplorer337 Result: Destroyed by P-60 Hacker with Shock Rifle Performance ------------- Evolutions (3) 1500 Regions Visited (5) 1000 Robots Destroyed (73) 365 Value Destroyed (2265) 2265 Prototype IDs (1) 20 Alien Tech Used (0) 0 Bonus (64) 64 TOTAL SCORE: 5214 Bonus ------- Follower Combat Kills 64 Cogmind --------- Core Integrity 0/700 Matter 217/300 Energy 100/100 System Corruption 4% Temperature Cool (0) Movement Core (450) Ox8 Location -7/Factory Parts ------- > --- POWER (2) -------- (None) > --- PROPULSION (3) --- (None) > --- UTILITY (6) ------ Large Storage Unit System Shield > --- WEAPON (2) ------- Minigun Minigun > --- INVENTORY (15) --- Improved Heat Sink Experimental Sensor Array Armor Integrity Analyzer Weapon Cycler Reaction Control System System Shield Beam Rifle Peak State ------------ > --- POWER ------------ Light Nuclear Core > --- PROPULSION ------- Aluminum Leg Carbon-fiber Leg VSS Leg > --- UTILITY ---------- Advanced Heat Sink Huge Storage Unit Compact Battery Advanced Visual Processing Unit ECM Suite > --- WEAPON ----------- Particle Gun Scythe > --- INVENTORY -------- Aluminum Leg Aluminum Leg Improved Heat Sink Medium Storage Unit Experimental Sensor Array Reaction Control System Beam Rifle Minigun Minigun Missile Launcher Mining Laser [Rating: 31] Favorites ----------- Power Light Nuclear Core Engine Ion Engine Power Core Light Nuclear Core Propulsion Aluminum Leg Leg Aluminum Leg Utility Medium Storage Unit Device ECM Suite Storage Medium Storage Unit Processor Visual Processing Unit Hackware System Shield Weapon Scythe Energy Gun Particle Gun Energy Cannon Beam Cannon Ballistic Gun Light Assault Rifle Ballistic Cannon Gauss Cannon Special Weapon Mining Laser Slashing Weapon Scythe Build | -11 -10 -9 -9 -8 -7 ------- Run | Yrd Mat Mat Min Mat Fac Slots Evolved 6 | . . 2 . 2 2 Power 1 | . . . . . 1 Propulsion 1 | . . . . 1 . Utility 4 | . . 2 . 1 1 Weapon . | . . . . . . Parts Attached 57 | 7 8 7 7 21 7 Power 6 | 1 1 . 1 2 1 Engine 3 | 1 1 . . . 1 Core 3 | . . . 1 2 . Reactor . | . . . . . . Propulsion 20 | 2 3 2 3 9 1 Treads . | . . . . . . Leg 20 | 2 3 2 3 9 1 Wheel . | . . . . . . Hover . | . . . . . . Flight . | . . . . . . Utility 16 | 2 3 1 1 9 . Device 7 | 1 2 . 1 3 . Storage 5 | 1 1 . . 3 . Processor 2 | . . 1 . 1 . Hackware 2 | . . . . 2 . Protection . | . . . . . . Artifact . | . . . . . . Weapon 15 | 2 1 4 2 1 5 Energy Gun 5 | 1 . 3 . 1 . Energy Cannon 1 | . 1 . . . . Ballistic Gun 4 | 1 . 1 . . 2 Ballistic Cannon 1 | . . . . . 1 Launcher . | . . . . . . Special Weapon 1 | . . . . . 1 Impact Weapon . | . . . . . . Slashing Weapon 3 | . . . 2 . 1 Piercing Weapon . | . . . . . . Special Melee Weapon . | . . . . . . Unidentified Prototypes 1 | . . 1 . . . Parts Lost 34 | . 1 7 4 8 14 Power 6 | . 1 . 1 2 2 Propulsion 11 | . . 3 1 3 4 Utility 6 | . . 1 1 1 3 Weapon 11 | . . 3 1 2 5 Highest Loss Streak 6 | . 1 5 3 5 6 To Critical Strikes 1 | . . 1 . . . Average Backups 8 | 2 5 8 9 9 10 Power 1 | 1 1 2 1 . . Propulsion . | . . . . 1 . Utility 2 | . 1 2 2 3 5 Weapon 3 | 1 1 3 5 4 4 Tool/Special . | . . . . . . Unused Backups 22 | . 2 8 1 5 6 Power 1 | . 1 . . . . Propulsion 2 | . 1 . . 1 . Utility 7 | . . . . 2 5 Weapon 12 | . . 8 1 2 1 Tool/Special . | . . . . . . Average Slot Usage (%) 83 | . 100 75 77 96 67 Engine 5 | . 14 11 1 . 3 Core 4 | . . . 9 8 2 Leg 19 | . 28 10 19 26 16 Device 14 | . 14 16 2 17 12 Storage 11 | . 14 11 11 15 7 Processor 4 | . . 4 11 6 . Hackware 3 | . . . . 4 9 Energy Gun 9 | . 13 16 2 6 5 Energy Cannon 1 | . 8 3 . . . Ballistic Gun 1 | . 5 2 . . . Slashing Weapon 6 | . . . 19 9 6 Peak Build Rating 31 | 9 10 17 20 31 31 Average Rating 19 | 4 9 12 15 27 25 On Entrance 13 | . 9 10 14 20 30 Naked Turns . | . . . . . . Heaviest Build 38 | 14 21 23 22 33 38 Greatest Support 37 | 20 20 20 20 37 37 Greatest Overweight (x) 10 | 1 1 7 2 1 10 Average Overweight (x) . | . . 1 . . . Largest Inventory Capacity 25 | 8 10 10 10 25 15 Average Capacity 11 | 7 9 10 10 10 15 Most Carried 12 | 7 10 10 10 11 12 Average Carried 8 | 2 6 8 9 9 10 Final Capacity 15 | 8 10 10 10 15 15 Final Carried 10 | 2 8 10 10 10 7 Class Distribution -------------------- 57% | Scavenger-Mutant 42% | Mutant Dominant Class ---------------- Mutant | -10/Materials Mutant | -9/Materials Mutant | -9/Mines Scavenger-Mutant | -8/Materials Scavenger-Mutant | -7/Factory Resources | -11 -10 -9 -9 -8 -7 ----------- Run | Yrd Mat Mat Min Mat Fac Matter Collected 840 | 277 77 139 70 215 62 Remotely . | . . . . . . Salvage Created 2912 | 111 321 647 242 1108 483 Parts 151 | 5 18 32 9 64 23 Haulers Intercepted 1 | . . 1 . . . Recyclers Shooed 4 | . . 2 . 1 1 Parts Field Recycled . | . . . . . . Retrieved Matter . | . . . . . . Parts Self-Destructed . | . . . . . . Prevented . | . . . . . . Kills | -11 -10 -9 -9 -8 -7 ------- Run | Yrd Mat Mat Min Mat Fac Combat Hostiles Destroyed 55 | . 9 12 5 22 7 Melee 29 | . . . 5 20 4 Guns 15 | . 4 9 . 2 . Cannons 9 | . 5 3 . . 1 AOE 2 | . . . . . 2 Classes Destroyed 10 | 2 3 3 . 1 1 Worker 6 | . 2 . . 2 2 Tunneler 1 | 1 . . . . . Hauler 1 | . . 1 . . . Recycler 6 | 1 . 2 . 1 2 Watcher 4 | . . 2 . 1 1 Swarmer 13 | . 3 6 . 4 . Grunt 32 | . 6 3 5 13 5 Duelist 1 | . . . . . 1 Sentry 8 | . . 3 . 4 1 Specialist 1 | . . . . 1 . Best Kill Streak 5 | 2 3 5 3 5 5 Combat Bots Only 5 | . 2 5 3 4 3 Max Kills in Single Turn 3 | 1 1 1 1 1 3 Gunslinging . | . . . . . . Exploded 2 | . . . . . 2 Melee 1 | . . . 1 1 1 Uniques/NPCs Destroyed . | . . . . . . Combat | -11 -10 -9 -9 -8 -7 -------- Run | Yrd Mat Mat Min Mat Fac Hostile Shots Fired 444 | . 59 79 49 98 159 Missed 118 | . 19 22 9 26 42 Hits 326 | . 40 57 40 72 117 Melee 9 | . . . . . 9 Projectile 317 | . 40 57 40 72 108 AOE 2 | . . . . . 2 Critical Strikes 11 | . . 2 . 4 5 Damage Taken 4495 | . 534 587 467 1002 1905 Core 1321 | . 94 137 176 212 702 Absorbed by Shields . | . . . . . . Core Remaining (%) 61 | 100 62 . 21 61 . Volleys Fired 136 | 7 43 52 4 13 17 Largest 2 | 2 2 2 2 1 2 Hottest 121 | 70 110 121 121 65 100 Shots Fired 242 | 14 84 101 8 13 22 Gun 186 | 14 57 80 8 13 14 Cannon 55 | . 27 21 . . 7 Launcher . | . . . . . . Special 1 | . . . . . 1 Kinetic 69 | 7 17 26 . . 19 Thermal 173 | 7 67 75 8 13 3 Explosive . | . . . . . . Electromagnetic . | . . . . . . Robot Hit Streak 12 | 3 5 12 6 6 7 Robot Miss Streak 4 | 3 4 4 2 1 3 Penetration Max . | . . . . . . Secondary Targets 1 | . 1 . . . . Max Gunslinging Chain 1 | . 1 . . . . Shots Hit Robots 223 | 7 41 62 17 60 36 Core Hits 95 | 4 14 26 5 28 18 Critical Kills . | . . . . . . Critical Parts Destroyed 1 | . . . . . 1 Critical Strikes 15 | . 2 2 3 6 2 Burn 4 | . 2 2 . . . Destroy 1 | . . . . . 1 Blast 1 | . . . . . 1 Sever 9 | . . . 3 6 . Melee Attacks 113 | . . . 20 65 28 Impact . | . . . . . . Slashing 113 | . . . 20 65 28 Piercing . | . . . . . . Sneak Attacks 9 | . . . . 5 4 Combat Hostiles 1 | . . . . 1 . Follow-up Attacks 3 | . . . 3 . . Damage Inflicted 5496 | 63 628 847 449 1882 1627 Guns 1413 | 63 305 655 72 137 181 Cannons 597 | . 246 192 . . 159 Explosions 543 | . 77 . . . 466 Melee 2919 | . . . 377 1745 797 Ramming . | . . . . . . Kinetic 552 | 37 52 123 . . 340 Thermal 1482 | 26 499 724 72 137 24 Explosive 543 | . 77 . . . 466 Electromagnetic . | . . . . . . Impact . | . . . . . . Slashing 2919 | . . . 377 1745 797 Piercing . | . . . . . . Highest Corruption 4 | . 1 . . . 4 Average Corruption 1 | . 1 . . . 2 Corruption Purged . | . . . . . . Corruption Blocked . | . . . . . . Effects 3 | . 3 . . . . Message Errors 1 | . 1 . . . . Matter Fused 2 | . 2 . . . . Overload Shots . | . . . . . . Overflow Damage 323 | . 75 16 . 98 134 Projectiles 36 | . 20 16 . . . Explosions 102 | . 55 . . . 47 Melee 185 | . . . . 98 87 Knockbacks 3 | . . . . . 3 Impact . | . . . . . . Kinetic 3 | . . . . . 3 Secondary . | . . . . . . Self-Inflicted Damage 315 | . 86 . . . 229 Shots 4 | . 1 . . . 3 Rammed . | . . . . . . Targets Rammed . | . . . . . . Kicked . | . . . . . . Crushed . | . . . . . . Highest Temperature 330 | 50 330 45 128 3 13 Average Temperature 52 | 23 92 11 60 3 13 Received Heat Transfer 1473 | . 189 111 264 504 405 Siege Activations . | . . . . . . Martial Activations . | . . . . . . Shielding Activations . | . . . . . . Robots Disrupted . | . . . . . . Combat Hostiles . | . . . . . . Robots Corrupted . | . . . . . . Combat Hostiles . | . . . . . . Parts Fried . | . . . . . . Impact Corruptions . | . . . . . . Robots Melted . | . . . . . . Combat Hostiles . | . . . . . . Parts Melted 9 | . 6 2 . 1 . Heat Transferred 3898 | 74 1406 1850 185 333 50 Parts Sabotaged . | . . . . . . Parts Stolen . | . . . . . . Parts Stripped . | . . . . . . Power Chain Reactions . | . . . . . . Alert | -11 -10 -9 -9 -8 -7 ------- Run | Yrd Mat Mat Min Mat Fac Maximum Alert Level 1 | . . . . 1 1 Low Security (%) 94 | 100 100 100 100 85 94 Level 1 5 | . . . . 14 5 Level 2 . | . . . . . . Level 3 . | . . . . . . Level 4 . | . . . . . . Level 5 . | . . . . . . High Security . | . . . . . . Max Security . | . . . . . . Peak Influence 237 | 10 129 80 117 237 218 Initial 73 | . . 47 . 45 73 Average 64 | 1 57 29 17 136 38 Influence Increases 1970 | 10 333 363 213 671 380 Destroy 0b10 Robot/C 1180 | . 180 240 140 480 140 Destroy 0b10 Robot/NC 90 | 10 10 25 . 20 25 Destroy Leader 270 | . 30 76 30 102 32 Allied During Kill 10 | . . . 6 4 . Successful Hack 76 | . 28 6 7 35 . Disable Machine 195 | . 45 . 30 30 90 Destroy Structure 59 | . 10 1 . . 48 Lose Combat Pursuer 90 | . 30 15 . . 45 Influence Decreases 1790 | 10 220 476 96 626 362 Entered New Map 227 | . . 66 . 72 89 Time Decay 1319 | 10 170 360 86 474 219 Lost Part 204 | . 10 50 10 80 54 Purge Threat 40 | . 40 . . . . Squads Dispatched 7 | . . 2 1 2 2 Investigation 2 | . . 1 1 . . Extermination 1 | . . . . . 1 Reinforcement 4 | . . 1 . 2 1 Assault . | . . . . . . Garrison . | . . . . . . Intercept . | . . . . . . Searches Triggered . | . . . . . . Construction Impeded . | . . . . . . Haulers Reinforced . | . . . . . . Active Scanning Responses . | . . . . . . Cargo Convoy Interrupts . | . . . . . . Stealth | -11 -10 -9 -9 -8 -7 --------- Run | Yrd Mat Mat Min Mat Fac Distress Signals 8 | . 1 2 . 4 1 Communications Jammed . | . . . . . . Distress Signals . | . . . . . . Times Spotted 101 | . 15 20 8 42 16 Peak Tracking Total 8 | . 4 8 3 8 4 Tactical Retreats 12 | . 1 1 . 8 2 Traps | -11 -10 -9 -9 -8 -7 ------- Run | Yrd Mat Mat Min Mat Fac Traps Triggered 1 | . 1 . . . . Indirectly . | . . . . . . Trap Hack Attempts . | . . . . . . Triggered . | . . . . . . Disarmed . | . . . . . . Reprogrammed . | . . . . . . Reused . | . . . . . . Traps Extracted . | . . . . . . Installed . | . . . . . . Triggered . | . . . . . . Machines | -11 -10 -9 -9 -8 -7 ---------- Run | Yrd Mat Mat Min Mat Fac Machines Disabled 14 | . 4 . 2 2 6 Max in Single Turn 4 | . 2 . . 1 4 Machines Repaired . | . . . . . . Machines Dismantled . | . . . . . . Machines Sabotaged . | . . . . . . Overloaded Fab Kills . | . . . . . . Hacking | -11 -10 -9 -9 -8 -7 --------- Run | Yrd Mat Mat Min Mat Fac Machines Accessed 12 | . 3 3 1 5 . Terminals 12 | . 3 3 1 5 . Fabricators . | . . . . . . Repair Stations . | . . . . . . Recycling Units . | . . . . . . Scanalyzers . | . . . . . . Garrison Access . | . . . . . . Total Hacks 36 | . 7 9 3 17 . Successful 18 | . 3 4 1 10 . Failed 18 | . 4 5 2 7 . Catastrophic 6 | . 1 2 . 3 . Database Lockouts . | . . . . . . Manual . | . . . . . . Terminals 36 | . 7 9 3 17 . Fabricators . | . . . . . . Repair Stations . | . . . . . . Recycling Units . | . . . . . . Scanalyzers . | . . . . . . Garrison Access . | . . . . . . Terminal Hacks 18 | . 3 4 1 10 . Record 7 | . . 3 . 4 . Level Access Points 1 | . . . . 1 . Branch Access Points 1 | . . . . 1 . Emergency Access Points 1 | . . . . 1 . Alert Level 1 | . . . . 1 . Unreport Threat 1 | . 1 . . . . Transport Status 1 | . . 1 . . . Recall Investigation 1 | . . . 1 . . Hauler Manifests 2 | . . . . 2 . Zone Layout 2 | . 2 . . . . Fabricator Hacks . | . . . . . . Repair Station Hacks . | . . . . . . Recycling Unit Hacks . | . . . . . . Scanalyzer . | . . . . . . Garrison Access Hacks . | . . . . . . Unauthorized Hacks . | . . . . . . Terminals . | . . . . . . Fabricators . | . . . . . . Repair Stations . | . . . . . . Recycling Units . | . . . . . . Scanalyzers . | . . . . . . Garrison Access . | . . . . . . Data Cores Recovered . | . . . . . . Used . | . . . . . . Hacking Detections 10 | . 3 3 1 3 . Full Trace Events 4 | . 2 1 1 . . Feedback Events . | . . . . . . Feedback Blocked . | . . . . . . Robot Schematics Acquired . | . . . . . . Robots Built . | . . . . . . Authchips . | . . . . . . Time . | . . . . . . Total Robot Build Rating . | . . . . . . Part Schematics Acquired . | . . . . . . Parts Built . | . . . . . . Authchips . | . . . . . . Time . | . . . . . . Total Part Build Rating . | . . . . . . Parts Repaired . | . . . . . . Time . | . . . . . . Parts Recycled . | . . . . . . Recycled Matter . | . . . . . . Retrieved Matter . | . . . . . . Retrieved Components . | . . . . . . Parts Scanalyzed . | . . . . . . Part Schematics Acquired . | . . . . . . Parts Damaged . | . . . . . . Bothacking | -11 -10 -9 -9 -8 -7 ------------ Run | Yrd Mat Mat Min Mat Fac Used RIF Installer . | . . . . . . Robots Hacked . | . . . . . . Non-combat . | . . . . . . Combat . | . . . . . . Robot Hacks Applied . | . . . . . . Relay Couplers Released . | . . . . . . Fabnet Peak Effective % . | . . . . . . Robots Rewired . | . . . . . . Allies Hacked . | . . . . . . Hacks Repelled . | . . . . . . Allies | -11 -10 -9 -9 -8 -7 -------- Run | Yrd Mat Mat Min Mat Fac Total Allies 1 | . . . 1 . . Largest Group 1 | . . . 1 1 . Highest-Rated Group 31 | . . . 31 31 . Highest-Rated Ally 31 | . . . 31 31 . Total Orders . | . . . . . . Ally Attacks 22 | . . . 9 13 . Total Damage 254 | . . . 84 170 . Kills 4 | . . . 2 2 . Allies Corrupted . | . . . . . . Allies Melted . | . . . . . . Intel | -11 -10 -9 -9 -8 -7 ------- Run | Yrd Mat Mat Min Mat Fac Active Infowar (turns) 3142 | 3 183 662 457 1214 623 Optics 1805 | . . 425 457 923 . Terrain 646 | 3 183 460 . . . ECM 1720 | . . . . 1097 623 Robot Analysis Total . | . . . . . . Derelict Logs Recovered 1 | . . . 1 . . Drone Launches . | . . . . . . Drone Recoveries . | . . . . . . Exploration | -11 -10 -9 -9 -8 -7 ------------- Run | Yrd Mat Mat Min Mat Fac Turns Passed 4051 | 92 490 970 457 1214 828 Spaces Moved 1801 | 54 219 299 297 633 299 Core 81 | 15 . 42 . . 24 Treads . | . . . . . . Legs 1720 | 39 219 257 297 633 275 Wheels . | . . . . . . Hover . | . . . . . . Flight . | . . . . . . Fastest Speed 50 | 50 120 120 120 105 110 Average Speed 146 | 106 155 221 127 115 157 Slowest Speed 550 | 120 190 400 260 190 550 Overloaded Moves . | . . . . . . Propulsion Burnouts . | . . . . . . Robots Hopped . | . . . . . . Potential Cave-ins . | . . . . . . Cave-ins Triggered . | . . . . . . Exploration Rate (%) 34 | 4 41 33 58 61 9 Regions Visited 5 Branch Regions 1 Pre-discovered Areas . | . . . . . . Known Exits Taken 1 | . . . . 1 . Unknown Exits Taken 4 | 1 1 1 1 . . Scrap Searched 1 | . . . 1 . . Spaces Dug . | . . . . . . Terrain Destroyed 67 | . 8 . . . 59 Melee . | . . . . . . Projectile . | . . . . . . AOE 67 | . 8 . . . 59 Terrain Rammed . | . . . . . . Walls Destroyed . | . . . . . . Machines Disabled . | . . . . . . Actions | -11 -10 -9 -9 -8 -7 --------- Run | Yrd Mat Mat Min Mat Fac Total 2830 | 75 289 519 344 1010 593 Wait 626 | . 1 129 13 249 234 Move 1796 | 53 218 298 296 632 299 Hop . | . . . . . . Pick Up 65 | 8 12 19 7 13 6 Fast Attach 8 | 1 . . 1 6 . Attach 38 | 6 1 9 5 8 9 Detach 1 | . . 1 . . . Swap 21 | . 8 1 2 10 . Drop 32 | . 6 10 2 14 . Fire 136 | 7 43 52 4 13 17 Melee 107 | . . . 14 65 28 Ram . | . . . . . . Kick . | . . . . . . Crush . | . . . . . . Escape Stasis . | . . . . . . Rewire . | . . . . . . Trap . | . . . . . . Miscellaneous . | . . . . . . Route ------- -11/Scrapyard -10/Materials (discovered 2 exits: *Mat / [*Min]) -9/Materials -9/Mines -8/Materials (discovered 4 exits: *Fac x3 / *Sto) -7/Factory History --------- Turn | Location | Event 16 | -11/Scrapyard | Discovered new exit (range 15) 93 | -11/Scrapyard | Entered Materials 257 | -10/Materials | Discovered new exit (range 7) 301 | -10/Materials | Build established: Mutant 422 | -10/Materials | Discovered new exit (range 8) 583 | -10/Materials | Entered another Materials area 583 | -9/Materials | Evolved 2 slots: Utility x2 888 | -9/Materials | Lost 5 parts (3n2w) 1447 | -9/Materials | Build established: Scavenger-Mutant 1501 | -9/Materials | Discovered new exit (range 17) 1553 | -9/Materials | Entered Mines 1608 | -9/Mines | Core integrity fell below 50% 1627 | -9/Mines | Lost 3 parts (1p1u1w) 1816 | -9/Mines | Learned 2 Materials zone layouts 1836 | -9/Mines | Found a damaged Exp. Sensor Array with a note attached 1839 | -9/Mines | Found Prototype Device 1867 | -9/Mines | Received a Mining Laser from a helpful Derelict 1891 | -9/Mines | Build established: Mutant 1945 | -9/Mines | Discovered new exit (range 12) 2010 | -9/Mines | Entered Materials 2010 | -8/Materials | Accompanied by 1 ally 2010 | -8/Materials | Evolved 2 slots: Propulsion x1, Utility x1 2011 | -8/Materials | Identified exit to Factory 2043 | -8/Materials | Identified exit to Storage 2250 | -8/Materials | Build established: Scavenger-Mutant 2800 | -8/Materials | Lost 5 parts (1p2n1u1w) 3224 | -8/Materials | Entered Factory 3224 | -7/Factory | Evolved 2 slots: Power x1, Utility x1 3515 | -7/Factory | Lost 3 parts (1p1n1u) 3899 | -7/Factory | Core integrity fell below 50% 3927 | -7/Factory | Lost 6 parts (1p1n1u3w) 4020 | -7/Factory | Core integrity fell below 20% 4052 | -7/Factory | Destroyed by P-60 Hacker with Shock Rifle Last Messages --------------- 04044_ U-05 Engineer lays Concrete. 04044_ K-01 Serf collects debris. 04045_ U-05 Engineer lays Concrete. 04045_ K-01 Serf destroyed. 04046_ U-05 Engineer lays Concrete. 04047_ K-01 Serf collects debris. 04048_ U-05 Engineer lays Concrete. 04048_ Destroyed Shock Rifle. 04049_ The unstable cave ceiling collapses. 04049_ U-05 Engineer lays Concrete. 04049_ K-01 Serf collects debris. 04050_ The unstable cave ceiling collapses. 04050_ U-05 Engineer lays Concrete. 04050_ P-60 Hacker suffers critical hit (Destroy). 04050_ Destroyed Gravmag System. 04050_ K-01 Serf destroyed. 04051_ U-05 Engineer lays Concrete. 04051_ K-01 Serf collects debris. 04051_ U-05 Engineer lays Concrete. Map ----- +----------------------------------------------------+ | ?????????????????????????? ??????????????? | | ?????????????????????????? ???????????????# | | ?????????????????????????? ???????????????# | | ?????????????????????????? ???????????????# | | ?????????????+#############/################# | | ????????????? | | ????????????? | | ???????????? | | ????????????? % % | | ????????????? !%%% | | ????????????????????# ####+#############+######## | | ????????????????????# # % ### % #? | | ????????????????????# ## " #? | | ????????????????????## # [ [#? | | ????????????????????## # [[[#? | | ?????????????? # ### [[%## | | ????????????? # * # # # | | ??????????? # %%= u # # ## | | ??????????? # !! u # #? | | ??????????? # # [ #? | | ??????????? # k # # #? | | ?????????? #; # # #? | | ?????????? #; # #? | | ?????????? #; k ###############? | | ?????????? #;k =** #??????????????? | | ???????????? ## @ %!% ##??????????????? | | ???????????? ??####p#######???????????????? | | ?????????????#######?????# #?????????????????????? | | ?????????????????????????#+#?????????????????????? | | ????????????????????????? ?????????????????????? | | ?????????????????????????"" ?????????????????????? | | ?????????????????????????Y" ?????????????????????? | | ????????????????????????? " #????????????????????? | | ????????????????????????? ? #????????????????????? | | ??????????????????????????? #????????????????????? | | ??????????????????????????? #????????????????????? | | ??????????????????????????? ?????????????????????? | | ??????????????????????????? ?????????????????????? | | ?????????????????????????????????????????????????? | | ?????????????????????????????????????????????????? | | ?????????????????????????????????????????????????? | | ?????????????????????????????????????????????????? | | ?????????????????????????????????????????????????? | | ?????????????????????????????????????????????????? | | ?????????????????????????????????????????????????? | | ?????????????????????????????????????????????????? | | ?????????????????????????????????????????????????? | | ?????????????????????????????????????????????????? | | ?????????????????????????????????????????????????? | | ?????????????????????????????????????????????????? | +----------------------------------------------------+ Best States ------------- Heat Dissipation 55 Energy Generation 16 Energy Capacity 360 Matter Stores 300 Matter Capacity 300 Sight Range 20 Terrain Scan Range 16 Terrain Scan Density 10 ECM Strength 1 Evasion (%) 55 Defensive Hacking 20 Item Schematics ----------------- None Robot Schematics ------------------ None Fabricated ------------ Nothing Repaired ---------- Nothing Alien Tech Used ----------------- None Achievements -------------- Everything Is Under Control Challenges ------------ None Game ------ Seed CentriumDisposableEdition Manual? 0 Play Time 00:42:39 Cumulative 23.3 hours Start 2025.07.31 @ 19:59:54 End 2025.07.31 @ 20:40:08 Sessions 1 Manual Loads 0 Difficulty Rogue Special Mode None Game No. 35 Rogue 35 Adventurer 0 Explorer 0 Win Type - Total 0 Types 0/0/0/0/0/0/0/0/0/0 Lore% 18 Gallery% 21 Achievement% 18 Wizard Run 0 Options --------- Layout 1 ASCII 0 Keyboard 0 Movement Mouse Keybinds 0 Fullscreen 1 Font 24/Smallcaps Map View 50x40 Zoom Use 0% Tactical HUD 1 Map Filters NONE Filters NONE Steam 1 RUN: 4f1d3b78-0ed2-4159-a936-d9510ae26bdd